Workbook

Sheet целиякия (мал)
B1: Примерное 2-х недельное меню для учащихся 7-11 лет, больных целиакией
B3: № рец. | C3: Наименование блюд | G3: Выход | I3: Белки, г | K3: Жиры, г | L3: Углеводы, г | O3: Калорийность, ккал
B4: 1 неделя
B5: 1 ДЕНЬ
B6: ЗАВТРАК
B7: № 338/2015 г Дели | C7: ФРУКТ (апельсин) | G7: 120 | I7: 0.480 | K7: 0.480 | L7: 11.760 | O7: 53
B8: №340 сбор.2004/210 Дели 2015 | C8: ОМЛЕТ НАТУРАЛЬНЫЙ | G8: 80 | I8: 6.771 | K8: 7.859 | L8: 1.551 | O8: 104
B9: №173/2015г,Дели | C9: КАША ВЯЗКАЯ МОЛОЧНАЯ ИЗ ПШЁННОЙ КРУПЫ С МАСЛОМ | G9: 150/5 | I9: 6.703 | K9: 8.788 | L9: 33.069 | O9: 238
B10: №376 Дели 2015 | C10: ЧАЙ С САХАРОМ | G10: 200/15/7 | I10: 0.273 | K10: 0.057 | L10: 15.230 | O10: 63
C11: ХЛЕБЦЫ РИСОВЫЕ | G11: 25 | I11: 1.5 | K11: 0.25 | L11: 17.25 | O11: 77
B12: Итого: | G12: 602 | I12: =I11+I10+I9+I8+I7 -> 15.727 | K12: =K11+K10+K9+K8+K7 -> 17.434 | L12: =L11+L10+L9+L8+L7 -> 78.860 | O12: =O11+O10+O9+O8+O7 -> 535
B13: ОБЕД
B14: № 338/2015 г Дели | C14: ФРУКТ (Яблоко зеленое) | G14: 120 | I14: 0.480 | K14: 0.480 | L14: 11.760 | O14: 53
B15: №47/2015г,Дели | C15: САЛАТ ИЗ КВАШЕННОЙ КАПУСТЫ | G15: 60 | I15: 0.931 | K15: 3.051 | L15: 9.105 | O15: 68
B16: № 111 сб.рецептур 2004 г. | C16: БОРЩ СИБИРСКИЙ (без томатной пасты) | G16: 200 | I16: 2.184 | K16: 1.880 | L16: 25.185 | O16: 126
B17: №266/2015г,Дели | C17: БИФШТЕКС РУБЛЕНЫЙ | G17: 90г | I17: 13.755 | K17: 13.345 | L17: 8.879 | O17: 211
B18: №302/2015г,Дели | C18: КАША ГРЕЧНЕВАЯ РАССЫПЧАТАЯ | G18: 150 | I18: 6.622 | K18: 5.399 | L18: 40.875 | O18: 239
B19: № 705 Сбор. рецеп. 2004 г | C19: НАПИТОК ИЗ ШИПОВНИКА | G19: 200 | I19: 0.210 | K19: 0.050 | L19: 15.020 | O19: 61
C20: ХЛЕБЦЫ ГРЕЧНЕВЫЕ 40 г | G20: 40 | I20: 1.92 | K20: 1.96 | L20: 8.8 | O20: 59
B21: Итого: | G21: 860 | I21: =I20+I19+I18+I17+I16+I15+I14 -> 26.102 | K21: =K20+K19+K18+K17+K16+K15+K14 -> 26.165 | L21: =L20+L19+L18+L17+L16+L15+L14 -> 119.624 | O21: =SUM(O14:R20) -> 817
C22: Всего: | G22: 1462 | I22: =I21+I12 -> 41.829 | K22: =K21+K12 -> 43.599 | L22: =L21+L12 -> 198.484 | O22: =O21+O12 -> 1352
B23: 2 ДЕНЬ
B24: ЗАВТРАК
B25: № 338/2015 г Дели | C25: ФРУКТ (мандарин) | G25: 100 | I25: 0.480 | K25: 0.480 | L25: 5.860 | O25: 53
B26: №14/2015г Дели | C26: Масло Сливочное (Порциями) | G26: 10 | I26: 7.30 | K26: 7.55 | L26: 0.8 | O26: 97
B27: №173/2015г,Дели | C27: КАША ВЯЗКАЯ МОЛОЧНАЯ ИЗ КУКУРУЗНОЙ КРУПЫ с маслом | G27: 150 /5 | I27: 6.008 | K27: 7.453 | L27: 43.484 | O27: 265
B28: №377/2015г,Дели | C28: ЧАЙ С ЛИМОНОМ | G28: 200/ 15 | I28: 0.320 | K28: 0.140 | L28: 20.440 | O28: 84
C29: ХЛЕБЦЫ РИСОВЫЕ | G29: 25 | I29: 1.5 | K29: 0.25 | L29: 17.25 | O29: 77
B30: Итого: | G30: 505 | I30: =I29+I28+I27+I26+I25 -> 15.608 | K30: =K29+K28+K27+K26+K25 -> 15.873 | L30: =L29+L28+L27+L26+L25 -> 87.834 | O30: =O29+O28+O27+O26+O25 -> 576
B31: ОБЕД
B32: №52/2015г,Дели | C32: САЛАТ ИЗ СВЕКЛЫ ОТВАРНОЙ (с маслом) | G32: 60 | I32: 0.455 | K32: 0.653 | L32: 5.016 | O32: 29
B33: №99/2015г,Дели | C33: СУП ОВОЩНОЙ С МЯСНЫМИ ФРИКАДЕЛЬКАМИ | G33: 200 10 | I33: 2.970 | K33: 3.763 | L33: 20.083 | O33: 126
B34: №291/2015г,Дели | C34: ПЛОВ ИЗ ПТИЦЫ (без томатной пасты) | G34: 50/150 | I34: 16.838 | K34: 18.996 | L34: 32.639 | O34: 369
B35: №348/2015г,Дели | C35: КОМПОТ ИЗ СУХОФРУКТОВ | G35: 200 | I35: 0.440 | K35: 0.020 | L35: 29.760 | O35: 121
C36: ХЛЕБЦЫ ГРЕЧНЕВЫЕ | G36: 40 | I36: 1.92 | K36: 1.96 | L36: 8.8 | O36: 59
B37: Итого: | G37: 710 | I37: =I36+I35+I34+I33+I32 -> 22.623 | K37: =K36+K35+K34+K33+K32 -> 25.392 | L37: =L36+L35+L34+L33+L32 -> 96.298 | O37: =O36+O35+O34+O33+O32 -> 704
C38: Всего: | G38: 1215 | I38: =I37+I30 -> 38.231 | K38: =K37+K30 -> 41.265 | L38: =L37+L30 -> 184.132 | O38: =O37+O30 -> 1280
B39: 3 ДЕНЬ
B40: ЗАВТРАК
B41: № 338/2015 г Дели | C41: ФРУКТ (Банан) | G41: 120 | I41: 0.480 | K41: 0.480 | L41: 11.760 | O41: 53
B42: №29/2015г,Дели | C42: Яицо отварное | G42: 1 шт | I42: 6.155 | K42: 5.918 | L42: 0.28 | O42: 79
B43: №303/2015г,Дели | C43: КАША ВЯЗКАЯ МОЛОЧНАЯ ИЗ РИСА с маслом | G43: 150/5 | I43: 6.886 | K43: 8.956 | L43: 37.807 | O43: 259
B44: №378/2015г,Дели | C44: ЧАЙ С МОЛОКОМ | G44: 200 | I44: 0.210 | K44: 0.050 | L44: 15.020 | O44: 61
C45: ХЛЕБЦЫ РИСОВЫЕ | G45: 25 | I45: 1.5 | K45: 0.25 | L45: 17.25 | O45: 77
B46: Итого: | G46: 548 | I46: =I45+I44+I43+I42+I41 -> 15.231 | K46: =K45+K44+K43+K42+K41 -> 15.654 | L46: =L45+L44+L43+L42+L41 -> 82.117 | O46: =O45+O44+O43+O42+O41 -> 529
B47: ОБЕД
B48: № 338/2015 г Дели | C48: ФРУКТ (Груша) | G48: 120 | I48: 0.480 | K48: 0.480 | L48: 11.760 | O48: 53
B49: № 59/2015 г Дели | C49: САЛАТ ИЗ МОРКОВИ С ЯБЛОКАМИ | G49: 60 | I49: 0.594 | K49: 0.084 | L49: 5.272 | O49: 24
B50: №88/2015г,Дели | C50: ЩИ ИЗ СВЕЖЕЙ КАПУСТЫ С КАРТОФЕЛЕМ (без томатной пасты) | G50: 200 | I50: 1.950 | K50: 2.950 | L50: 9.120 | O50: 71
B51: №260/2015г,Дели | C51: ГУЛЯШ (без томатной пасты, пшенич.муки) | G51: 50/50 | I51: 15.194 | K51: 17.678 | L51: 10.845 | O51: 263
B52: №136/2015г,Дели | C52: ОВОЩИ ПРИПУЩЕННЫЕ | G52: 150 | I52: 5.105 | K52: 5.800 | L52: 36.5 | O52: 219
B53: № 631 Сбор. рецеп. 2004 г | C53: КОМПОТ ИЗ ЯБЛОК | G53: 200/15/7 | I53: 0.440 | K53: 0.020 | L53: 29.760 | O53: 121
C54: ХЛЕБЦЫ ГРЕЧНЕВЫЕ | G54: 40 | I54: 1.92 | K54: 1.96 | L54: 8.8 | O54: 59
B55: Итого: | G55: 892 | I55: =I54+I53+I52+I51+I50+I49+I48 -> 25.683 | K55: =K54+K53+K52+K51+K50+K49+K48 -> 28.97 | L55: =L54+L53+L52+L51+L50+L49+L48 -> 112.057 | O55: =O54+O53+O52+O51+O50+O49+O48 -> 810
C56: Всего: | G56: 1440 | I56: =I55+I46 -> 40.914 | K56: =K55+K46 -> 44.63 | L56: =L55+L46 -> 194.174 | O56: =O55+O46 -> 1339
B57: 4 ДЕНЬ
B58: ЗАВТРАК
B59: № 338/2015 г Дели | C59: ФРУКТ (Апельсин) | G59: 120 | I59: 0.480 | K59: 0.480 | L59: 11.760 | O59: 53
B60: №340 сбор.2004/210 Дели 2015 | C60: ОМЛЕТ НАТУРАЛЬНЫЙ | G60: 80 | I60: 6.771 | K60: 7.859 | L60: 1.551 | O60: 104
B61: №173/2015г,Дели | C61: КАША ВЯЗКАЯ МОЛОЧНАЯ ИЗ ПШЁННОЙ КРУПЫ С МАСЛОМ | G61: 150/5 | I61: 6.703 | K61: 8.788 | L61: 33.069 | O61: 238
B62: №376 Дели 2015 | C62: ЧАЙ С САХАРОМ | G62: 200/15/7 | I62: 0.273 | K62: 0.057 | L62: 15.230 | O62: 63
C63: ХЛЕБЦЫ РИСОВЫЕ | G63: 25 | I63: 1.5 | K63: 0.25 | L63: 17.25 | O63: 77
B64: Итого: | G64: 602 | I64: =I63+I62+I61+I60+I59 -> 15.727 | K64: =K63+K61+K62+K60+K59 -> 17.434 | L64: =L63+L61+L62+L60+L59 -> 78.860 | O64: =O63+O62+O61+O60+O59 -> 535
B65: ОБЕД
B66: №45/2015г,Дели | C66: САЛАТ ИЗ БЕЛОКОЧАННОЙ КАПУСТЫ | G66: 60 | I66: 0.931 | K66: 3.051 | L66: 9.105 | O66: 68
B67: №102/2015г,Дели | C67: СУП КАРТОФЕЛЬНЫЙ С БОБОВЫМИ С МЯСНЫМИ ФРИКАДЕЛЬКАМИ | G67: 200/ 10 | I67: 3.403 | K67: 3.237 | L67: 21.625 | O67: 129
B68: №289/2015г,Дели | C68: РАГУ ИЗ ПТИЦЫ (без томатной пасты, пшенич.муки) | G68: 150/50г | I68: 17.310 | K68: 16.546 | L68: 40.984 | O68: 382
B69: № 704 2004 г | C69: НАПИТОК ИЗ КУРАГИ | G69: 200/15 | I69: 0.210 | K69: 0.050 | L69: 15.020 | O69: 61
C70: ХЛЕБЦЫ ГРЕЧНЕВЫЕ | G70: 40 | I70: 1.92 | K70: 1.96 | L70: 8.8 | O70: 59
B71: Итого: | G71: 725 | I71: =I70+I69+I68+I67+I66 -> 23.774 | K71: =K70+K69+K67+K68+K66 -> 24.844 | L71: =L70+L69+L67+L68+L66 -> 95.534 | O71: =O70+O69+O68+O67+O66 -> 699
C72: Всего: | G72: 1327 | I72: =I71+I64 -> 39.501 | K72: =K71+K64 -> 42.278 | L72: =L71+L64 -> 174.394 | O72: =O71+O64 -> 1234
B73: 5 ДЕНЬ
B74: ЗАВТРАК
B75: № 338/2015 г Дели | C75: ФРУКТ (Мандарин) | G75: 100 | I75: 0.480 | K75: 0.480 | L75: 5.860 | O75: 53
B76: №14/2015г Дели | C76: Масло Сливочное (Порциями) | G76: 10 | I76: 7.30 | K76: 7.55 | L76: 0.8 | O76: 97
B77: №173/2015г,Дели | C77: КАША ВЯЗКАЯ МОЛОЧНАЯ ИЗ КУКУРУЗНОЙ КРУПЫ с маслом | G77: 150/5 | I77: 6.008 | K77: 7.453 | L77: 43.484 | O77: 265
B78: №377/2015г,Дели | C78: ЧАЙ С ЛИМОНОМ | G78: 200/ 15 | I78: 0.320 | K78: 0.140 | L78: 20.440 | O78: 84
C79: ХЛЕБЦЫ РИСОВЫЕ | G79: 25 | I79: 1.5 | K79: 0.25 | L79: 17.25 | O79: 77
B80: Итого: | G80: 505 | I80: =I79+I78+I77+I76+I75 -> 15.608 | K80: =K79+K78+K77+K76+K75 -> 15.873 | L80: =L79+L78+L77+L76+L75 -> 87.834 | O80: =O79+O78+O77+O76+O75 -> 576
B81: ОБЕД
B82: № 338/2015 г Дели | C82: ФРУКТ (Яблоко зеленое) | G82: 120 | I82: 0.480 | K82: 0.480 | L82: 26.74 | O82: 113
B83: № 62 Дели 2015 г | C83: САЛАТ ИЗ МОРКОВИ | G83: 60 | I83: 0.931 | K83: 3.051 | L83: 9.105 | O83: 68
B84: №88/2015г,Дели | C84: ЩИ ИЗ СВЕЖЕЙ КАПУСТЫ С КАРТОФЕЛЕМ (без томатной пасты) | G84: 200 | I84: 1.950 | K84: 2.950 | L84: 9.120 | O84: 71
B85: № 464 Сбор. рецеп. 2004 г | C85: ТЕФТЕЛИ ИЗ ГОВЯДИНЫ (без пшенич.хлеба) | G85: 90 | I85: 11.045 | K85: 11.953 | L85: 1.590 | O85: 158
B86: Сб.,М:ДеЛи плюс,2015,рец.№199 | C86: ПЮРЕ ИЗ БОБОВЫХ | G86: 150 | I86: 7.595 | K86: 5.224 | L86: 34.797 | O86: 216
B87: № 705 Сбор. рецеп. 2004 г | C87: НАПИТОК ИЗ ШИПОВНИКА | G87: 200 | I87: 0.210 | K87: 0.050 | L87: 15.020 | O87: 61
C88: ХЛЕБЦЫ ГРЕЧНЕВЫЕ | G88: 40 | I88: 1.92 | K88: 1.96 | L88: 8.8 | O88: 59
B89: Итого: | G89: 860 | I89: =I82+I83+I84+I85+I86+I87+I88 -> 24.131 | K89: =K82+K83+K84+K85+K86+K87+K88 -> 25.668 | L89: =L82+L83+L84+L85+L86+L87+L88 -> 105.172 | O89: =O82+O83+O84+O85+O86+O87+O88 -> 746
C90: Всего: | G90: 1365 | I90: =I89+I80 -> 39.739 | K90: =K89+K80 -> 41.541 | L90: =L89+L80 -> 193.006 | O90: =O89+O80 -> 1322
B91: 6 ДЕНЬ
B92: ЗАВТРАК
B93: № 338/2015 г Дели | C93: ФРУКТ (Груша) | G93: 120 | I93: 0.480 | K93: 0.480 | L93: 11.760 | O93: 53
B94: №29/2015г,Дели | C94: Яицо отварное | G94: 1 шт | I94: 6.155 | K94: 5.918 | L94: 0.28 | O94: 79
B95: № 305, Сбор. рец 2004 г | C95: КАША МОЛОЧНАЯ "ЯНТАРНАЯ" с МАСЛОМ | G95: 150/5 | I95: 6.860 | K95: 10.277 | L95: 31.596 | O95: 255
B96: №378/2015г,Дели | C96: ЧАЙ С МОЛОКОМ | G96: 200/15 | I96: 0.210 | K96: 0.050 | L96: 15.020 | O96: 61
C97: ХЛЕБЦЫ РИСОВЫЕ | G97: 25 | I97: 1.5 | K97: 0.25 | L97: 17.25 | O97: 77
B98: Итого: | G98: 563 | I98: =I97+I96+I95+I94+I93 -> 15.205 | K98: =K97+K96+K95+K94+K93 -> 16.975 | L98: =L97+L96+L95+L94+L93 -> 75.906 | O98: =O97+O96+O95+O94+O93 -> 525
B99: ОБЕД
B100: №47/2015г,Дели | C100: САЛАТ ИЗ КВАШЕНОЙ КАПУСТЫ | G100: 60 | I100: 0.931 | K100: 3.051 | L100: 9.105 | O100: 68
B101: №97/2015г,Дели | C101: СУП КАРТОФЕЛЬНЫЙ С МЯСНЫМИ ФРИКАДЕЛЬКАМИ | G101: 200 /10 | I101: 4.270 | K101: 4.462 | L101: 20.083 | O101: 137
B102: № 268/2015г,Дели | C102: КОТЛЕТЫ ИЗ ГОВЯДИНЫ (без пшенич.муки,хлеба,сухарей) | G102: 90г | I102: 14.831 | K102: 14.359 | L102: 6.624 | O102: 214
B103: №139/2015г,Дели | C103: КАПУСТА ТУШЕНАЯ (без томатной пасты, пшенич.муки) | G103: 150 | I103: 3.570 | K103: 3.814 | L103: 26.500 | O103: 148
B104: № 700 Сбор. рецеп. 2004 г | C104: НАПИТОК ИЗ ЗАМОРОЖЕННОЙ КЛЮКВЫ | G104: 200 | I104: 0.125 | K104: 0.050 | L104: 24.877 | O104: 100
C105: ХЛЕБЦЫ ГРЕЧНЕВЫЕ | G105: 40 | I105: 1.92 | K105: 1.96 | L105: 8.8 | O105: 59
B106: Итого: | G106: 750 | I106: =SUM(I100:J105) -> 25.647 | K106: =SUM(K100:K105) -> 27.696 | L106: =SUM(L100:N105) -> 95.989 | O106: =SUM(O100:R105) -> 726
C107: Всего: | G107: 1313 | I107: =I98+I106 -> 40.852 | K107: =K106+K98 -> 44.671 | L107: =L106+L98 -> 171.895 | O107: =O106+O98 -> 1251
B108: 2 неделя
B109: 1 ДЕНЬ
B110: ЗАВТРАК
B111: № 338/2015 г Дели | C111: ФРУКТ (Банан) | G111: 120 | I111: 0.480 | K111: 0.480 | L111: 11.760 | O111: 53
B112: №340 сбор.2004/210 Дели 2015 | C112: ОМЛЕТ НАТУРАЛЬНЫЙ | G112: 80 | I112: 6.771 | K112: 7.859 | L112: 1.551 | O112: 104
B113: №173/2015г,Дели | C113: КАША ВЯЗКАЯ МОЛОЧНАЯ ИЗ ПШЁННОЙ КРУПЫ с маслом | G113: 150/5 | I113: 6.703 | K113: 8.788 | L113: 33.069 | O113: 238
B114: №376 Дели 2015 | C114: ЧАЙ С САХАРОМ | G114: 200/15/7 | I114: 0.273 | K114: 0.057 | L114: 15.230 | O114: 63
C115: ХЛЕБЦЫ РИСОВЫЕ | G115: 25 | I115: 1.5 | K115: 0.25 | L115: 17.25 | O115: 77
B116: Итого: | G116: 602 | I116: =I115+I114+I113+I112+I111 -> 15.727 | K116: =K115+K114+K113+K112+K111 -> 17.434 | L116: =L115+L114+L113+L112+L111 -> 78.860 | O116: =O115+O114+O113+O112+O111 -> 535
B117: ОБЕД
B118: № 338/2015 г Дели | C118: ФРУКТ (Апельсин) | G118: 120 | I118: 0.48 | K118: 0.48 | L118: 11.76 | O118: 53
B119: №45/2015г,Дели | C119: САЛАТ ИЗ БЕЛОКОЧАННОЙ КАПУСТЫ | G119: 60 | I119: 0.931 | K119: 3.051 | L119: 9.105 | O119: 68
B120: № 111 сб.рецептур 2004 г. | C120: БОРЩ СИБИРСКИЙ 250 г (без лимон.к-ты) картоф.очищ. | G120: 200 | I120: 2.184 | K120: 1.880 | L120: 24.707 | O120: 125
B121: № 281/2015г,Дели | C121: БИТОЧКИ ПАРОВЫЕ (без хлеба) | G121: 90 | I121: 15.083 | K121: 11.991 | L121: 7.565 | O121: 198
B122: №304/2015г,Дели | C122: РИС ОТВАРНОЙ С МАСЛОМ | G122: 150/5 | I122: 3.874 | K122: 6.059 | L122: 30.054 | O122: 190
B123: № 631 Сбор. рецеп. 2004 г | C123: КОМПОТ ИЗ УРЮКА | G123: 200/15 | I123: 0.210 | K123: 0.050 | L123: 15.020 | O123: 61
C124: ХЛЕБЦЫ ГРЕЧНЕВЫЕ | G124: 40 | I124: 1.92 | K124: 1.96 | L124: 8.8 | O124: 59
B125: Итого: | G125: 880 | I125: =I124+I123+I122+I121+I120+I119+I118 -> 24.682 | K125: =K124+K123+K122+K121+K120+K119+K118 -> 25.471 | L125: =L124+L123+L122+L121+L120+L119+L118 -> 107.011 | O125: =O124+O123+O122+O121+O120+O119+O118 -> 754
C126: Всего: | G126: 1482 | I126: =I125+I116 -> 40.409 | K126: =K125+K116 -> 42.905 | L126: =L125+L116 -> 185.871 | O126: =O125+O116 -> 1289
B127: 2 ДЕНЬ
B128: ЗАВТРАК
B129: № 338/2015 г Дели | C129: ФРУКТ (мандарин) | G129: 100 | I129: 0.480 | K129: 0.480 | L129: 5.860 | O129: 53
B130: №14/2015г Дели | C130: МАСЛО СЛИВОЧНОЕ (Порциями) | G130: 10 | I130: 7.30 | K130: 7.55 | L130: 0.8 | O130: 100
B131: №173/2015г,Дели | C131: КАША ВЯЗКАЯ МОЛОЧНАЯ ИЗ КУКУРУЗНОЙ КРУПЫ с маслом | G131: 150/5 | I131: 6.008 | K131: 7.453 | L131: 43.484 | O131: 265
B132: №377/2015г,Дели | C132: ЧАЙ С ЛИМОНОМ | G132: 200/ 15 | I132: 0.320 | K132: 0.140 | L132: 20.440 | O132: 84
C133: ХЛЕБЦЫ ГРЕЧНЕВЫЕ | G133: 25 | I133: 1.2 | K133: 1.23 | L133: 6 | O133: 37
B134: Итого: | G134: 505 | I134: =I133+I132+I131+I130+I129 -> 15.308 | K134: =K133+K132+K131+K130+K129 -> 16.853 | L134: =L133+L132+L131+L130+L129 -> 76.584 | O134: =O133+O132+O131+O130+O129 -> 539
B135: ОБЕД
B136: №52/2015г,Дели | C136: САЛАТ ИЗ СВЕКЛЫ ОТВАРНОЙ | G136: 60 | I136: 0.455 | K136: 0.653 | L136: 5.016 | O136: 29
B137: №99/2015г,Дели | C137: СУП ОВОЩНОЙ С МЯСНЫМИ ФРИКАДЕЛЬКАМИ | G137: 200 10 | I137: 2.970 | K137: 3.763 | L137: 20.083 | O137: 126
B138: №288/2015г,Дели | C138: ПТИЦА ОТВАРНАЯ | G138: 90 | I138: 14.397 | K138: 14.554 | L138: 6.580 | O138: 214
B139: № 541/2004 год | C139: РАГУ ОВОЩНОЕ | G139: 150 | I139: 3.630 | K139: 4.046 | L139: 29.400 | O139: 169
B140: № 705 Сбор. рецеп. 2004 г | C140: НАПИТОК ИЗ ШИПОВНИКА | G140: 200 | I140: 0.210 | K140: 0.050 | L140: 15.020 | O140: 61
C141: ХЛЕБЦЫ РИСОВЫЕ | G141: 40 | I141: 2.400 | K141: 0.4 | L141: 27.6 | O141: 123.2
B142: Итого: | G142: 750 | I142: =SUM(I136:J141) -> 24.062 | K142: =SUM(K136:K141) -> 23.466 | L142: =SUM(L136:N141) -> 103.70 | O142: =SUM(O136:R141) -> 722
C143: Всего: | G143: 1255 | I143: =I142+I134 -> 39.370 | K143: =K142+K134 -> 40.319 | L143: =L142+L134 -> 180.28 | O143: =O142+O134 -> 1261
B144: 3 ДЕНЬ
B145: ЗАВТРАК
B146: № 338 Дели 2015 г | C146: ФРУКТ(Яблоко зеленое) | G146: 120 | I146: 0.480 | K146: 0.480 | L146: 11.760 | O146: 56
B147: №29/2015г,Дели | C147: ЯЙЦО ОТВАРНОЕ | G147: 1 шт | I147: 6.155 | K147: 5.918 | L147: 0.28 | O147: 79
B148: Сб.,М:ДеЛи плюс,2015,рец.№173 | C148: КАША ВЯЗКАЯ МОЛОЧНАЯ ИЗ РИСОВОЙ КРУПЫ с маслом | G148: 150/5 | I148: 6.886 | K148: 8.956 | L148: 37.807 | O148: 259
B149: №378/2015г,Дели | C149: ЧАЙ С МОЛОКОМ | G149: 200 /15 | I149: 0.210 | K149: 0.050 | L149: 15.020 | O149: 61
C150: ХЛЕБЦЫ РИСОВЫЕ | G150: 25 | I150: 1.5 | K150: 0.25 | L150: 17.25 | O150: 77
B151: Итого: | G151: 563 | I151: =I150+I149+I148+I147+I146 -> 15.23 | K151: =K150+K149+K148+K147+K146 -> 15.654 | L151: =L150+L149+L148+L147+L146 -> 82.117 | O151: =O150+O149+O148+O147+O146 -> 532
B152: ОБЕД
B153: № 338 Дели 2015 г | C153: ФРУКТ(Груша) | G153: 120 | I153: 0.480 | K153: 0.480 | L153: 11.760 | O153: 56
B154: №47/2015г,Дели | C154: САЛАТ ИЗ КВАШЕНОЙ КАПУСТЫ | G154: 60 | I154: 0.931 | K154: 3.051 | L154: 9.105 | O154: 68
B155: №98/2015г,Дели | C155: СУП КРЕСТЬЯНСКИЙ С КРУПОЙ | G155: 200г | I155: 1.885 | K155: 1.120 | L155: 10.320 | O155: 59
B156: № 371 Сбор.2004г | C156: ГОРБУША ПРИПУЩЕННАЯ | G156: 90 | I156: 15.364 | K156: 12.744 | L156: 0.295 | O156: 177
B157: №312/2015г,Дели | C157: ПЮРЕ КАРТОФЕЛЬНОЕ С МАСЛОМ | G157: 150/5 | I157: 3.322 | K157: 8.182 | L157: 42.067 | O157: 255
B158: №348/2015г,Дели | C158: КОМПОТ ИЗ СУХОФРУКТОВ | G158: 200 | I158: 0.210 | K158: 0.050 | L158: 15.020 | O158: 61
C159: ХЛЕБЦЫ ГРЕЧНЕВЫЕ | G159: 40 | I159: 1.92 | K159: 1.96 | L159: 8.8 | O159: 59.2
B160: Итого: | G160: 865 | I160: =I159+I158+I157+I156+I155+I154+I153 -> 24.112 | K160: =K153+K154+K155+K156+K157+K158+K159 -> 27.587 | L160: =L153+L154+L155+L156+L157+L158+L159 -> 97.367 | O160: =O153+O154+O155+O156+O157+O158+O159 -> 735
C161: Всего: | G161: 1428 | I161: =I160+I151 -> 39.343 | K161: =K160+K151 -> 43.241 | L161: =L160+L151 -> 179.484 | O161: =O160+O151 -> 1267
B162: 4 ДЕНЬ
B163: ЗАВТРАК
B164: № 338 Дели 2015 г | C164: ФРУКТ(Апельсин) | G164: 120 | I164: 0.480 | K164: 0.480 | L164: 11.760 | O164: 56
B165: №340 сбор.2004/210 Дели 2015 | C165: ОМЛЕТ НАТУРАЛЬНЫЙ | G165: 80 | I165: 6.771 | K165: 7.859 | L165: 1.551 | O165: 175
B166: №173/2015г,Дели | C166: КАША ВЯЗКАЯ МОЛОЧНАЯ ИЗ ПШЁННОЙ КРУПЫ с маслом | G166: 150/5 | I166: 6.703 | K166: 8.788 | L166: 33.069 | O166: 238
B167: №376/2015г,Дели | C167: ЧАЙ С САХАРОМ | G167: 200/15/7 | I167: 0.273 | K167: 0.057 | L167: 15.230 | O167: 63
C168: ХЛЕБЦЫ РИСОВЫЕ | G168: 25 | I168: 1.5 | K168: 0.25 | L168: 17.25 | O168: 77
B169: Итого: | G169: 602 | I169: =I167+I168+I166+I165+I164 -> 15.727 | K169: =K168+K167+K166+K165+K164 -> 17.434 | L169: =L168+L167+L166+L165+L164 -> 78.860 | O169: =O168+O167+O166+O165+O164 -> 609
B170: ОБЕД
B171: № 338 Дели 2015 г | C171: ФРУКТ(банан) | G171: 120 | I171: 0.480 | K171: 0.480 | L171: 11.760 | O171: 56
B172: №45/2015г,Дели | C172: САЛАТ ИЗ БЕЛОКОЧАННОЙ КАПУСТЫ | G172: 60 | I172: 0.931 | K172: 3.051 | L172: 9.105 | O172: 68
B173: №102/2015г,Дели | C173: СУП КАРТОФЕЛЬНЫЙ С БОБОВЫМИ,МЯСНЫМИ ФРИКАДЕЛЬКАМИ | G173: 200 /10 | I173: 3.403 | K173: 3.237 | L173: 21.625 | O173: 129
B174: №291/2015г,Дели | C174: ПЛОВ ИЗ ПТИЦЫ (без томатной пасты) | G174: 50/150 | I174: 16.838 | K174: 18.750 | L174: 32.639 | O174: 369
B175: № 704 2004 г | C175: НАПИТОК ИЗ КУРАГИ | G175: 200/15 | I175: 0.210 | K175: 0.050 | L175: 15.020 | O175: 61
C176: ХЛЕБЦЫ ГРЕЧНЕВЫЕ | G176: 40 | I176: 1.92 | K176: 1.96 | L176: 8.8 | O176: 59.2
B177: Итого: | G177: 845 | I177: =I176+I175+I174+I173+I172+I171 -> 23.782 | K177: =K176+K175+K174+K173+K172+K171 -> 27.528 | L177: =L176+L175+L174+L173+L172+L171 -> 98.949 | O177: =O176+O175+O174+O173+O172+O171 -> 742
C178: Всего: | G178: 1447 | I178: =I177+I169 -> 39.509 | K178: =K177+K169 -> 44.962 | L178: =L177+L169 -> 177.809 | O178: =O177+O169 -> 1351
B179: 5 ДЕНЬ
B180: ЗАВТРАК
B181: № 338/2015 г Дели | C181: ФРУКТ (мандарин) | G181: 100 | I181: 0.480 | K181: 0.480 | L181: 5.860 | O181: 53
B182: №14/2015г Дели | C182: МАСЛО СЛИВОЧНОЕ (Порциями) | G182: 10 | I182: 7.30 | K182: 7.55 | L182: 0.8 | O182: 97
B183: №173/2015г,Дели | C183: КАША ВЯЗКАЯ МОЛОЧНАЯ ИЗ КУКУРУЗНОЙ КРУПЫ с маслом | G183: 150/5 | I183: 6.008 | K183: 7.453 | L183: 43.484 | O183: 265
B184: №377/2015г,Дели | C184: ЧАЙ С ЛИМОНОМ | G184: 200 /15 | I184: 0.320 | K184: 0.140 | L184: 20.440 | O184: 84
C185: ХЛЕБЦЫ РИСОВЫЕ | G185: 25 | I185: 1.5 | K185: 0.25 | L185: 17.25 | O185: 77
B186: Итого: | G186: 505 | I186: =I185+I184+I183+I181+I182 -> 15.608 | K186: =K185+K184+K183+K182+K181 -> 15.873 | L186: =L185+L184+L183+L182+L181 -> 87.834 | O186: =O185+O184+O183+O182+O181 -> 576
B187: ОБЕД
B188: № 338 Дели 2015 г | C188: ФРУКТ (Яблоко красное) | G188: 120 | I188: 0.480 | K188: 0.480 | L188: 6.760 | O188: 52
B189: № 62/ Дели 2015 г | C189: САЛАТ ИЗ МОРКОВИ | G189: 60 | I189: 0.931 | K189: 3.051 | L189: 9.051 | O189: 68
B190: №88/2015г,Дели | C190: ЩИ ИЗ СВЕЖЕЙ КАПУСТЫ С КАРТОФЕЛЕМ (без томатной пасты) | G190: 200 | I190: 1.950 | K190: 2.950 | L190: 9.120 | O190: 71
B191: №288/2015г,Дели | C191: ПТИЦА ОТВАРНАЯ | G191: 90 | I191: 14.397 | K191: 14.554 | L191: 6.580 | O191: 214
B192: №302/2015г,Дели | C192: КАША ГРЕЧНЕВАЯ РАССЫПЧАТАЯ | G192: 150 | I192: 6.622 | K192: 5.399 | L192: 40.875 | O192: 239
B193: № 631 Сбор. рецеп. 2004 г | C193: КОМПОТ ИЗ ЯБЛОК | G193: 200 | I193: 0.440 | K193: 0.020 | L193: 31.760 | O193: 137
C194: ХЛЕБЦЫ РИСОВЫЕ | G194: 25 | I194: 1.5 | K194: 0.25 | L194: 17.25 | O194: 77
B195: Итого: | G195: 845 | I195: =I194+I193+I192+I191+I190+I189+I188 -> 26.320 | K195: =K194+K193+K192+K191+K190+K189+K188 -> 26.704 | L195: =L194+L193+L192+L191+L190+L189+L188 -> 121.396 | O195: =O194+O193+O192+O191+O190+O189+O188 -> 858
C196: Всего: | G196: 1350 | I196: =I195+I186 -> 41.928 | K196: =K195+K186 -> 42.577 | L196: =L195+L186 -> 209.230 | O196: =O195+O186 -> 1434
B197: 6 ДЕНЬ
B198: ЗАВТРАК
B199: № 338 Дели 2015 г | C199: ФРУКТ (Груша) | G199: 120 | I199: 0.480 | K199: 0.480 | L199: 11.760 | O199: 56
B200: №29/2015г,Дели | C200: Яицо отварное | G200: 1 шт | I200: 6.155 | K200: 5.918 | L200: 0.28 | O200: 69
B201: № 305, Сбор. рец 2004 г | C201: КАША МОЛОЧНАЯ "ЯНТАРНАЯ" с МАСЛОМ | G201: 150/5 | I201: 6.860 | K201: 10.277 | L201: 31.596 | O201: 255
... 12 more rows
